Cogmind - Beta 10.2 @@@ ROGUE MODE // 2020.11.10 @ 19:10:36 // Halloween2020/ForbiddenLore Player: Komen Result: Destroyed by S-27 Virus with Autogun Performance ------------- Evolutions (3) 1500 Regions Visited (7) 1400 Robots Destroyed (9) 45 Value Destroyed (159) 159 Prototype IDs (3) 60 Alien Tech Used (0) 0 Bonus (546) 546 TOTAL SCORE: 3710 Bonus ------- Follower Combat Kills 46 Entered Garrisons 200 Aligned with FarCom 300 Cogmind --------- Core Integrity 0/700 Matter 185/300 Energy 100/100 System Corruption 0% Temperature Cool (9) Movement Core (50) Location -7/Garrison Parts ------- > --- POWER (2) -------- (None) > --- PROPULSION (4) --- (None) > --- UTILITY (5) ------ (None) > --- WEAPON (2) ------- (None) > --- INVENTORY (4) ---- Visual Processing Unit Improved Sensor Array Peak State ------------ > --- POWER ------------ Light Ion Engine > --- PROPULSION ------- Flight Unit Flight Unit > --- UTILITY ---------- Small Storage Unit Modified TNC > --- WEAPON ----------- Guided Plasma Cannon Light Assault Rifle > --- INVENTORY -------- Light Ion Engine Flight Unit Flight Unit Light Assault Rifle Light Assault Rifle Mini Grenade Launcher [Rating: 19] Favorites ----------- Power Light Ion Engine Engine Light Ion Engine Propulsion Flight Unit Leg Aluminum Leg Flight Unit Flight Unit Utility Small Storage Unit Device Sensor Array Storage Small Storage Unit Processor Modified TNC Weapon Light Assault Rifle Energy Cannon Guided Plasma Cannon Ballistic Gun Light Assault Rifle Launcher Mini Grenade Launcher Special Weapon Mining Laser Special Melee Weapon Improved Datajack Build | -11 -10 -10 -10 -9 -8 -7 -7 ------- Run | Scr Mat Min Exi Min Mat Fac Gar Slots Evolved 6 | . . . . . 4 2 . Power 1 | . . . . . . 1 . Propulsion 2 | . . . . . 2 . . Utility 3 | . . . . . 2 1 . Weapon . | . . . . . . . . Parts Attached 25 | 6 . 8 2 1 6 . 2 Power 3 | 1 . 1 . . 1 . . Engine 3 | 1 . 1 . . 1 . . Core . | . . . . . . . . Reactor . | . . . . . . . . Propulsion 7 | 2 . 3 . . 2 . . Treads . | . . . . . . . . Leg 2 | 2 . . . . . . . Wheel . | . . . . . . . . Hover . | . . . . . . . . Flight 5 | . . 3 . . 2 . . Utility 4 | 1 . . 1 . 2 . . Device 2 | . . . . . 2 . . Storage 1 | 1 . . . . . . . Processor 1 | . . . 1 . . . . Hackware . | . . . . . . . . Protection . | . . . . . . . . Artifact . | . . . . . . . . Weapon 11 | 2 . 4 1 1 1 . 2 Energy Gun . | . . . . . . . . Energy Cannon 1 | . . . 1 . . . . Ballistic Gun 7 | 2 . 3 . . . . 2 Ballistic Cannon . | . . . . . . . . Launcher 1 | . . . . 1 . . . Special Weapon 1 | . . 1 . . . . . Impact Weapon . | . . . . . . . . Slashing Weapon . | . . . . . . . . Piercing Weapon . | . . . . . . . . Special Melee Weapon 1 | . . . . . 1 . . Unidentified Prototypes 3 | . . . 3 . . . . Parts Lost 12 | . . . . 1 . . 11 Power 2 | . . . . 1 . . 1 Propulsion 4 | . . . . . . . 4 Utility 2 | . . . . . . . 2 Weapon 4 | . . . . . . . 4 Highest Loss Streak 11 | . . . . 1 . . 11 Average Slot Usage (%) 77 | . 85 81 76 93 81 69 49 Engine 11 | . 14 14 14 13 9 7 4 Leg 3 | . 28 8 . . . . . Flight 24 | . . 19 28 28 36 30 20 Storage 11 | . 14 14 14 14 9 7 6 Processor 5 | . . . 5 14 9 7 5 Ballistic Gun 12 | . 28 18 14 14 7 . 1 Launcher 3 | . . . . 8 9 7 4 Special Weapon 2 | . . 6 . . . . . Naked Turns 9 | . . . . . . . 9 Heaviest Build 13 | 13 13 13 8 9 9 9 9 Greatest Support 20 | 20 20 20 8 8 16 16 16 Greatest Overweight (x) 3 | 3 . 1 . 1 1 . 1 Average Overweight (x) . | . . . . . . . . Largest Inventory Capacity 6 | 6 6 6 6 6 6 6 6 Average Capacity 5 | 5 6 6 6 6 6 6 5 Most Carried 6 | 2 6 6 6 6 6 5 5 Average Carried 5 | 1 3 5 6 5 5 5 4 Final Capacity 6 | 6 6 6 6 6 6 6 4 Final Carried 6 | 2 6 6 6 5 5 5 2 Class Distribution -------------------- 70% | Mutant 28% | Scavenger-Mutant Dominant Class ---------------- Mutant | -10/Materials Mutant | -10/Mines Mutant | -10/Exiles Mutant | -9/Mines Scavenger-Mutant | -8/Materials Scavenger-Mutant | -7/Factory Scavenger-Mutant | -7/Garrison Resources | -11 -10 -10 -10 -9 -8 -7 -7 ----------- Run | Scr Mat Min Exi Min Mat Fac Gar Matter Collected 503 | 226 . 156 . 18 103 . . Remotely . | . . . . . . . . Salvage Created 134 | . 26 85 . 20 3 . . Parts 17 | . 1 7 . 6 3 . . Haulers Intercepted . | . . . . . . . . Recyclers Shooed . | . . . . . . . . Parts Field Recycled . | . . . . . . . . Retrieved Matter . | . . . . . . . . Parts Self-Destructed . | . . . . . . . . Prevented . | . . . . . . . . Kills | -11 -10 -10 -10 -9 -8 -7 -7 ------- Run | Scr Mat Min Exi Min Mat Fac Gar Combat Hostiles Destroyed 7 | . . 4 . 3 . . . Guns 4 | . . 4 . . . . . AOE 3 | . . . . 3 . . . Classes Destroyed 4 | . 1 2 . . 1 . . Builder 1 | . . . . . 1 . . Tunneler 1 | . 1 . . . . . . Swarmer 6 | . . 3 . 3 . . . Grunt 1 | . . 1 . . . . . Best Kill Streak 3 | . 1 2 . 3 1 . . Combat Bots Only 3 | . . 2 . 3 . . . Max Kills in Single Turn 1 | . 1 1 . 1 1 . . Gunslinging . | . . . . . . . . Exploded 1 | . . . . 1 . . . Melee . | . . . . . . . . Uniques/NPCs Destroyed . | . . . . . . . . Combat | -11 -10 -10 -10 -9 -8 -7 -7 -------- Run | Scr Mat Min Exi Min Mat Fac Gar Damage Taken 1612 | . 16 248 . 87 21 . 1240 Core 762 | . . 42 . 19 . . 701 Absorbed by Shields 248 | . . . . . . . 248 Core Remaining (%) 91 | 100 . . . 75 100 . . Volleys Fired 37 | . 1 11 . 12 5 . 8 Largest 2 | . 2 2 . 1 1 . 2 Hottest 40 | . 40 40 . 30 30 . 40 Shots Fired 51 | . 2 16 . 12 5 . 16 Gun 34 | . 2 16 . . . . 16 Cannon . | . . . . . . . . Launcher 17 | . . . . 12 5 . . Special . | . . . . . . . . Kinetic 34 | . 2 16 . . . . 16 Thermal . | . . . . . . . . Explosive 17 | . . . . 12 5 . . Electromagnetic . | . . . . . . . . Robot Hit Streak 3 | . 1 3 . 2 . . . Robot Miss Streak 3 | . . 3 . . . . . Penetration Max . | . . . . . . . . Secondary Targets . | . . . . . . . . Shots Hit Robots 13 | . 1 8 . 2 2 . . Core Hits 11 | . 1 5 . 3 2 . . Critical Hits . | . . . . . . . . Critical Kills . | . . . . . . . . Critical Parts Destroyed . | . . . . . . . . Melee Attacks 2 | . . . . . 2 . . Impact . | . . . . . . . . Slashing . | . . . . . . . . Piercing . | . . . . . . . . Sneak Attacks 2 | . . . . . 2 . . Combat Hostiles . | . . . . . . . . Follow-up Attacks . | . . . . . . . . Damage Inflicted 334 | . 10 101 . 198 14 . 11 Guns 111 | . 10 101 . . . . . Cannons . | . . . . . . . . Explosions 212 | . . . . 198 14 . . Melee . | . . . . . . . . Ramming 11 | . . . . . . . 11 Kinetic 111 | . 10 101 . . . . . Thermal . | . . . . . . . . Explosive 212 | . . . . 198 14 . . Electromagnetic . | . . . . . . . . Impact . | . . . . . . . . Slashing . | . . . . . . . . Piercing . | . . . . . . . . Highest Corruption 4 | . . . . 4 . . . Average Corruption 4 | . . . . 4 . . . Corruption Purged . | . . . . . . . . Overload Shots . | . . . . . . . . Overflow Damage 20 | . . . . 20 . . . Projectiles . | . . . . . . . . Explosions 20 | . . . . 20 . . . Melee . | . . . . . . . . Knockbacks . | . . . . . . . . Impact . | . . . . . . . . Kinetic . | . . . . . . . . Secondary . | . . . . . . . . Self-Inflicted Damage 64 | . . . . 38 21 . 5 Shots 3 | . . . . 2 1 . . Rammed 3 | . . . . . . . 3 Targets Rammed 3 | . . . . . . . 3 Kicked . | . . . . . . . . Crushed . | . . . . . . . . Highest Temperature 11 | . . 11 . . . . . Average Temperature 3 | . . 3 . . . . . Received Heat Transfer 81 | . 9 36 . . . . 36 Siege Activations . | . . . . . . . . Robots Corrupted . | . . . . . . . . Combat Hostiles . | . . . . . . . . Parts Fried . | . . . . . . . . Impact Corruptions . | . . . . . . . . Robots Melted . | . . . . . . . . Combat Hostiles . | . . . . . . . . Parts Melted . | . . . . . . . . Heat Transferred . | . . . . . . . . Parts Sabotaged . | . . . . . . . . Parts Stolen . | . . . . . . . . Parts Stripped . | . . . . . . . . Power Chain Reactions . | . . . . . . . . Missiles Intercepted . | . . . . . . . . Alert | -11 -10 -10 -10 -9 -8 -7 -7 ------- Run | Scr Mat Min Exi Min Mat Fac Gar Peak Influence 227 | . 35 227 . 115 100 45 156 Initial 45 | . . 13 . . 40 45 41 Average 73 | . 14 86 . 62 48 45 125 Maximum Alert Level 1 | . . 1 . . . . . Low Security (%) 97 | 100 100 92 . 100 100 100 100 Level 1 2 | . . 7 . . . . . Level 2 . | . . . . . . . . Level 3 . | . . . . . . . . Level 4 . | . . . . . . . . Level 5 . | . . . . . . . . High Security . | . . . . . . . . Max Security . | . . . . . . . . Squads Dispatched 1 | . 1 . . . . . . Investigation . | . . . . . . . . Extermination . | . . . . . . . . Reinforcement 1 | . 1 . . . . . . Assault . | . . . . . . . . Garrison . | . . . . . . . . Intercept . | . . . . . . . . Construction Impeded . | . . . . . . . . Haulers Reinforced . | . . . . . . . . Stealth | -11 -10 -10 -10 -9 -8 -7 -7 --------- Run | Scr Mat Min Exi Min Mat Fac Gar Distress Signals 2 | . 2 . . . . . . Communications Jammed . | . . . . . . . . Distress Signals . | . . . . . . . . Times Spotted 40 | . 5 10 . 2 . . 23 Peak Tracking Total 16 | . 3 3 . 2 2 . 16 Tactical Retreats 3 | . 1 1 . . . . 1 Traps | -11 -10 -10 -10 -9 -8 -7 -7 ------- Run | Scr Mat Min Exi Min Mat Fac Gar Traps Triggered 7 | . . . . . . . 7 Indirectly . | . . . . . . . . Trap Hack Attempts . | . . . . . . . . Triggered . | . . . . . . . . Disarmed . | . . . . . . . . Reprogrammed . | . . . . . . . . Reused . | . . . . . . . . Traps Extracted . | . . . . . . . . Installed . | . . . . . . . . Triggered 1 | . . 1 . . . . . Machines | -11 -10 -10 -10 -9 -8 -7 -7 ---------- Run | Scr Mat Min Exi Min Mat Fac Gar Machines Disabled 4 | . . 1 . 2 1 . . Max in Single Turn 1 | . . . . 1 1 . . Machines Sabotaged . | . . . . . . . . Garrisons Compromised . | . . . . . . . . Overloaded Fab Kills . | . . . . . . . . Fab Network Shutdowns . | . . . . . . . . Hacking | -11 -10 -10 -10 -9 -8 -7 -7 --------- Run | Scr Mat Min Exi Min Mat Fac Gar Machines Accessed 6 | . . . 3 . 2 1 . Terminals 1 | . . . . . 1 . . Fabricators . | . . . . . . . . Repair Stations . | . . . . . . . . Recycling Units . | . . . . . . . . Scanalyzers 1 | . . . . . 1 . . Garrison Access 1 | . . . . . . 1 . Total Hacks 37 | . . . 29 . 6 2 . Successful 36 | . . . 29 . 6 1 . Failed 1 | . . . . . . 1 . Catastrophic . | . . . . . . . . Database Lockouts . | . . . . . . . . Manual 3 | . . . 1 . 2 . . Terminals 2 | . . . . . 2 . . Fabricators . | . . . . . . . . Repair Stations . | . . . . . . . . Recycling Units . | . . . . . . . . Scanalyzers 4 | . . . . . 4 . . Garrison Access 2 | . . . . . . 2 . Terminal Hacks 29 | . . . 29 . . . . Record 29 | . . . 29 . . . . Fabricator Hacks . | . . . . . . . . Repair Station Hacks . | . . . . . . . . Recycling Unit Hacks . | . . . . . . . . Scanalyzer 4 | . . . . . 4 . . Insert Component 2 | . . . . . 2 . . Analyze 2 | . . . . . 2 . . Garrison Access Hacks 1 | . . . . . . 1 . Unlock Access 1 | . . . . . . 1 . Unauthorized Hacks 2 | . . . . . 2 . . Terminals 2 | . . . . . 2 . . Assimilate 1 | . . . . . 1 . . Botnet 1 | . . . . . 1 . . Fabricators . | . . . . . . . . Repair Stations . | . . . . . . . . Recycling Units . | . . . . . . . . Scanalyzers . | . . . . . . . . Garrison Access . | . . . . . . . . Data Cores Recovered . | . . . . . . . . Used . | . . . . . . . . Hacking Detections 3 | . . . . . 2 1 . Full Trace Events . | . . . . . . . . Feedback Events . | . . . . . . . . Feedback Blocked . | . . . . . . . . Robot Schematics Acquired . | . . . . . . . . Robots Built . | . . . . . . . . Matter . | . . . . . . . . Time . | . . . . . . . . Total Robot Build Rating . | . . . . . . . . Part Schematics Acquired 1 | . . . . . 1 . . Parts Built . | . . . . . . . . Matter . | . . . . . . . . Time . | . . . . . . . . Total Part Build Rating . | . . . . . . . . Parts Repaired . | . . . . . . . . Time . | . . . . . . . . Parts Recycled . | . . . . . . . . Recycled Matter . | . . . . . . . . Retrieved Matter . | . . . . . . . . Retrieved Components . | . . . . . . . . Parts Scanalyzed 2 | . . . . . 2 . . Part Schematics Acquired 1 | . . . . . 1 . . Parts Damaged . | . . . . . . . . Bothacking | -11 -10 -10 -10 -9 -8 -7 -7 ------------ Run | Scr Mat Min Exi Min Mat Fac Gar Used RIF Installer . | . . . . . . . . Robots Hacked 1 | . . . . . 1 . . Non-combat 1 | . . . . . 1 . . Combat . | . . . . . . . . Robot Hacks Applied 1 | . . . . . 1 . . find_recycling 1 | . . . . . 1 . . Relay Couplers Released . | . . . . . . . . Robots Rewired . | . . . . . . . . Allies Hacked . | . . . . . . . . Hacks Repelled . | . . . . . . . . Allies | -11 -10 -10 -10 -9 -8 -7 -7 -------- Run | Scr Mat Min Exi Min Mat Fac Gar Total Allies 3 | . . 3 . . . . . Largest Group 3 | . . 3 . . . . . Highest-Rated Group 40 | . . 40 . . . . . Highest-Rated Ally 16 | . . 16 . . . . . Total Orders . | . . . . . . . . Ally Attacks 34 | . . 34 . . . . . Total Damage 358 | . . 358 . . . . . Kills 4 | . . 4 . . . . . Allies Corrupted . | . . . . . . . . Allies Melted . | . . . . . . . . Intel | -11 -10 -10 -10 -9 -8 -7 -7 ------- Run | Scr Mat Min Exi Min Mat Fac Gar Robot Analysis Total . | . . . . . . . . Derelict Logs Recovered 2 | . . 2 . . . . . Drone Launches . | . . . . . . . . Drone Recoveries . | . . . . . . . . Exploration | -11 -10 -10 -10 -9 -8 -7 -7 ------------- Run | Scr Mat Min Exi Min Mat Fac Gar Turns Passed 1708 | 56 61 549 282 177 360 5 218 Spaces Moved 2146 | 38 46 620 753 260 267 13 149 Core 37 | 15 . . . . . . 22 Treads . | . . . . . . . . Legs 187 | 23 46 118 . . . . . Wheels . | . . . . . . . . Hover . | . . . . . . . . Flight 1922 | . . 502 753 260 267 13 127 Fastest Speed 31 | 50 120 37 37 37 31 31 31 Average Speed 65 | 120 120 77 37 58 106 31 70 Slowest Speed 200 | 200 120 120 37 117 117 31 117 Overloaded Moves . | . . . . . . . . Propulsion Burnouts . | . . . . . . . . Robots Hopped 5 | . . 5 . . . . . Cave-ins Triggered 1 | . . . . 1 . . . Time Travels 1 | . . . 1 . . . . Exploration Rate (%) 38 | 4 17 93 94 39 25 1 35 Regions Visited 7 Branch Regions 3 Pre-discovered Areas 1 | . . . 1 . . . . Known Exits Taken 2 | . . . . . 1 1 . Unknown Exits Taken 5 | 1 1 1 1 1 . . . Scrap Searched 2 | . . 1 . 1 . . . Spaces Dug 128 | . . . . 90 38 . . Terrain Destroyed 172 | . . . . 134 38 . . Melee . | . . . . . . . . Projectile . | . . . . . . . . AOE 172 | . . . . 134 38 . . Terrain Rammed . | . . . . . . . . Walls Destroyed . | . . . . . . . . Machines Disabled . | . . . . . . . . Actions | -11 -10 -10 -10 -9 -8 -7 -7 --------- Run | Scr Mat Min Exi Min Mat Fac Gar Total 2392 | 46 50 672 755 272 335 13 249 Wait 82 | . . 22 . . 49 . 11 Move 2129 | 37 45 609 752 258 266 13 149 Hop 5 | . . 5 . . . . . Pick Up 16 | 3 4 5 . . 4 . . Fast Attach 10 | 5 . 2 2 . 1 . . Attach 11 | 1 . 3 . 1 4 . 2 Detach 3 | . . 2 . . 1 . . Swap 4 | . . 3 . . 1 . . Drop 13 | . . 10 1 . 2 . . Fire 37 | . 1 11 . 12 5 . 8 Melee 2 | . . . . . 2 . . Ram 3 | . . . . . . . 3 Kick . | . . . . . . . . Crush . | . . . . . . . . Escape Stasis 77 | . . . . 1 . . 76 Rewire . | . . . . . . . . Trap . | . . . . . . . . Miscellaneous . | . . . . . . . . Route ------- -11/Scrapyard -10/Materials -10/Mines (discovered 3 exits: [*Mat x2] / *Exi) -10/Exiles (discovered 2 exits: [*Min x2]) -9/Mines -8/Materials -7/Factory -7/Garrison History --------- Turn | Location | Event 5 | -11/Scrapyard | Discovered new exit (range 16) 57 | -11/Scrapyard | Entered Materials 92 | -10/Materials | Discovered new exit (range 5) 118 | -10/Materials | Entered Mines 127 | -10/Mines | Assisted by bots powering up and referring to "LRC-V3" 313 | -10/Mines | Build established: Mutant 379 | -10/Mines | Discovered new exit (range 6) 505 | -10/Mines | Discovered new exit (range 9) 531 | -10/Mines | Assembled infested the area 546 | -10/Mines | Received a Rocket Launcher from a helpful Derelict 559 | -10/Mines | Learned location of 1 exit from Materials 629 | -10/Mines | Learned 8 Materials zone layouts 665 | -10/Mines | Discovered new exit (range 5) 667 | -10/Mines | Entered Exiles 674 | -10/Exiles | Discovered new exit (range 15) 687 | -10/Exiles | Met 8R-AWN 693 | -10/Exiles | Met EX-HEX 716 | -10/Exiles | Met EX-DEC 732 | -10/Exiles | Visited The Gauntlet 791 | -10/Exiles | Discovered new exit (range 12) 812 | -10/Exiles | Learned location of Zion (-7) 819 | -10/Exiles | Met EX-BIN 824 | -10/Exiles | Aligned with FarCom system 825 | -10/Exiles | Given EX-Vault access code 835 | -10/Exiles | Opened EX-Vault 837 | -10/Exiles | Found Prototype Device 837 | -10/Exiles | Identified Chronowheel 837 | -10/Exiles | Activated Chronowheel 837 | -10/Exiles | Spacetime reconverged on an earlier point 838 | -10/Exiles | Found Prototype Processor 838 | -10/Exiles | Identified Modified TNC 848 | -10/Exiles | Warned to stay clear of 0b10 Research branches 873 | -10/Exiles | Found Prototype Energy Cannon 873 | -10/Exiles | Identified Gui. Plasma Cannon 949 | -10/Exiles | Left Exiles lab with Modified TNC 949 | -10/Exiles | Entered Mines 1117 | -9/Mines | Crushed by falling debris 1121 | -9/Mines | Discovered new exit (range 13) 1126 | -9/Mines | Entered Materials 1126 | -8/Materials | Evolved 4 slots: Propulsion x2, Utility x2 1127 | -8/Materials | Identified exit to Factory 1440 | -8/Materials | Build established: Scavenger-Mutant 1486 | -8/Materials | Entered Factory 1486 | -7/Factory | Evolved 2 slots: Power x1, Utility x1 1491 | -7/Factory | Identified exit to Garrison 1491 | -7/Factory | Entered Garrison 1578 | -7/Garrison | Triggered checkpoint 1624 | -7/Garrison | Triggered checkpoint 1656 | -7/Garrison | Triggered checkpoint 1670 | -7/Garrison | Core integrity fell below 50% 1704 | -7/Garrison | Triggered checkpoint 1708 | -7/Garrison | Core integrity fell below 20% 1709 | -7/Garrison | Destroyed by S-27 Virus with Autogun Last Messages --------------- Field strength at 18. Field strength at 4. Stasis field depleted. Modified TNC destroyed. Triggered Stasis Trap. A bubble of rippling energy engulfs the area. Field strength at 94. Field strength at 84. Field strength at 78. Field strength at 59. Field strength at 53. Field strength at 34. Field strength at 24. Field strength at 9. Stasis field depleted. Sml. Storage Unit destroyed. Lgt. Assault Rifle destroyed. Beams of light sweep through the air. An alarm sounds. Lgt. Assault Rifle destroyed. Slammed into S-27 Virus. Map ----- +----------------------------------------------------+ | ??????????????????????????????????????????????? | | ??????????????????????????????????????????????? | | ??????????????????????????????????????????????? | | ?????????????????????????????????####?????????? | | ????????????????????????????????? #?????????? | | ????????????????????????????????? +?????????? | | ?????????????????????????????????# #?????????? | | ?????????????????????????????????# #?????????? | | ???????????????????##????????????# #?????????? | | ????????????????????!###?????????# #?????????? | | ????????????????????? #?????????# #?????????? | | ?????????????????????# #?????????# #?????????? | | ????????????????###### ########### ########### | | ????????????????# ! # | | ????????????????# ###=%=########## # | | ????????????????# #?# #????????# ######## # | | ??????????????### #?#####????????# #??????# # | | ??????????????#"# #???l#?????????# #??????# # | | ??????????????#" #??#g#?????????# #??????# # | | ??????????????#" g#??# ?????????# #??????# # | | ??????????????#" h#??# #?????????# #??????# # | | ??????????????#"# #??# #?????????# #??????# # | | ??????????????### #?##+##????????# #?????## # | | ????????????????# #?#gs #????????# #???### | | ????????????????#g###sss#######??# | | ????????????????# gsss@s s | | ????????????????###### #################### # | | ?????????????????#!!!# #??????????????????# # | | ?????????????????#! #?????????????????Y | | ?????????????????#!!!###????????????????# | | ?????????????????####???????????????????# " | | ????????????????????????????????????????# " | | ????????????????????????????????????????### # | | ??????????????????????????????????????????# # | | ??????????????????????????????????????????# ? | | ??????????????????????????????????????????# | | ??????????????????????????????????????????# | | ??????????????????????????????????????????# # | | ??????????????????????????????????????????? ? | | ??????????????????????????????????????????????? | | ??????????????????????????????????????????????? | | ??????????????????????????????????????????????? | | ??????????????????????????????????????????????? | | ??????????????????????????????????????????????? | | ??????????????????????????????????????????????? | | ??????????????????????????????????????????????? | | ??????????????????????????????????????????????? | | ??????????????????????????????????????????????? | | ??????????????????????????????????????????????? | | ??????????????????????????????????????????????? | +----------------------------------------------------+ Best States ------------- Heat Dissipation 34 Energy Generation 10 Energy Capacity 250 Matter Stores 300 Matter Capacity 300 Sight Range 16 Terrain Scan Density 10 Evasion (%) 63 Item Schematics ----------------- Imp. Datajack | -8/Materials | Scanalyzed Robot Schematics ------------------ None Fabricated ------------ Nothing Alien Tech Used ----------------- None Achievements -------------- None Challenges ------------ None Game ------ Seed DynamicAngularPerforator Manual? 0 Play Time 00:56:24 Cumulative 31.1 hours Start 2020.11.10 @ 11:18:31 End 2020.11.10 @ 19:10:36 Sessions 3 Manual Loads 0 Difficulty Rogue Special Mode Halloween2020/ForbiddenLore Game No. 54 Rogue 54 Adventurer 0 Explorer 0 Win Type - Total 0 Types 0/0/0/0/0/0/0/0/0 Lore% 29 Gallery% 32 Achievement% 26 Wizard Run 0 Options --------- ASCII 0 Keyboard 0 Movement Mouse Keybinds 0 Fullscreen 2 Font 24/Smallcaps Map View 76x50 Tactical HUD 0 Map Filters NONE Filters NONE Steam 1 RUN: 32054eb6-1f06-4f43-b5c8-396dd5048e75